[Event "SWE-ch Masters 2019"]
[Site "Eskilstuna"]
[Date "2019.07.14"]
[Round "9.5"]
[White "Olsson, Svante"]
[Black "Olsson, Simon"]
[Result "1/2-1/2"]
[ECO "A13"]
[WhiteElo "2155"]
[BlackElo "2176"]
[Annotator "ChessBase"]
[PlyCount "115"]
[EventDate "2019.07.06"]
[EventType "swiss"]
[EventCountry "SWE"]
[SourceTitle "playchess.com"]
[Source "ChessBase"]
[SourceQuality "1"]
[TimeControl "40/5400+30:1800+30"]

1. c4 {[%emt 0:00:00]} e6 {[%emt 0:00:00]} 2. Nf3 {[%emt 0:00:00]} d5 {[%emt 0:00:00]} 3. g3 {[%emt 0:00:11]} Nf6 {[%emt 0:00:18]} 4. Bg2 {[%emt 0:02:33]} Nc6 5. b3 {[%emt 0:00:00]} Be7 {[%emt 0:07:45]} 6. Bb2 {[%emt 0:00:21]} O-O {[%emt 0:00:16]} 7. O-O {[%emt 0:00:26]} Rb8 {[%emt 0:03:47]} 8. d3 {[%emt 0:00:49]} b6 {[%emt 0:02:51]} 9. Nc3 {[%emt 0:02:20]} Bb7 {[%emt 0:00:58]} 10. cxd5 {[%emt 0:02:28]} exd5 {[%emt 0:00:50]} 11. Rc1 {[%emt 0:01:01]} Re8 {[%emt 0:07:37]} 12. a3 {[%emt 0:08:17]} Bf8 {[%emt 0:09:42]} 13. b4 {[%emt 0:01:24]} a6 {[%emt 0:02:17]} 14. b5 {[%emt 0:05:13]} Na5 {[%emt 0:02:46]} 15. a4 {[%emt 0:02:57]} c5 {[%emt 0:01:26]} 16. bxa6 {[%emt 0:07:51]} Bxa6 {[%emt 0:00:28]} 17. Nb5 {[%emt 0:00:18]} Nc6 {[%emt 0:03:35]} 18. Bxf6 {[%emt 0:03:16]} gxf6 {[%emt 0:01:01]} 19. Nh4 {[%emt 0:00:36]} Bxb5 {[%emt 0:02:29]} 20. axb5 {[%emt 0:00:25]} Nd4 {[%emt 0:00:14]} 21. e4 {[%emt 0:03:56]} Qd7 {[%emt 0:06:09]} 22. Nf5 {[%emt 0:09:54]} Nxf5 {[%emt 0:02:32]} 23. Bh3 {[%emt 0:01:20]} dxe4 {[%emt 0:02:12]} 24. Qh5 {[%emt 0:01:28]} Ng7 {[%emt 0:01:52]} 25. Bxd7 {[%emt 0:01:21]} Nxh5 {[%emt 0:02:38]} 26. Bxe8 {[%emt 0:00:08]} Rxe8 {[%emt 0:00:02]} 27. Rfe1 {[%emt 0:01:36]} f5 {[%emt 0:00:07]} 28. Rc4 {[%emt 0:09:06]} Nf6 {[%emt 0:00:17]} 29. dxe4 {[%emt 0:01:18]} fxe4 {[%emt 0:01:04]} 30. Rd1 {[%emt 0:02:28]} Ra8 {[%emt 0:00:38]} 31. h3 {[%emt 0:00:40]} Be7 {[%emt 0:07:14]} 32. g4 {[%emt 0:00:19]} Rd8 {[%emt 0:00:32]} 33. Rxd8+ {[%emt 0:01:06]} Bxd8 {[%emt 0:00:01]} 34. g5 {[%emt 0:00:15]} Nd5 {[%emt 0:01:14]} 35. Rxe4 {[%emt 0:00:29]} Kf8 {[%emt 0:00:36]} 36. h4 {[%emt 0:00:51]} Nc3 {[%emt 0:00:36]} 37. Re5 {[%emt 0:00:45]} Nxb5 {[%emt 0:00:58]} 38. Rd5 {[%emt 0:00:25]} Be7 {[%emt 0:00:30]} 39. f4 {[%emt 0:00:23]} Nc3 {[%emt 0:01:21]} 40. Rd2 {[%emt 0:01:34]} Ne4 {[%emt 0:00:53]} 41. Rb2 {[%emt 0:31:08]} c4 {[%emt 0:30:19]} 42. Kg2 {[%emt 0:00:19]} Bc5 {[%emt 0:01:47]} 43. f5 {[%emt 0:00:25]} c3 {[%emt 0:04:03]} 44. Ra2 {[%emt 0:00:19]} Nd6 {[%emt 0:01:14]} 45. f6 {[%emt 0:00:09]} Ke8 {[%emt 0:00:17]} 46. Kf3 {[%emt 0:00:34]} Kd7 {[%emt 0:01:20]} 47. Ke2 {[%emt 0:00:20]} b5 {[%emt 0:00:46]} 48. Kd3 {[%emt 0:00:53]} b4 {[%emt 0:00:06]} 49. Re2 {[%emt 0:00:40]} Nf5 {[%emt 0:01:34]} 50. Re5 {[%emt 0:00:34]} Bf2 {[%emt 0:04:29]} 51. Rxf5 {[%emt 0:00:28]} Bxh4 {[%emt 0:00:06]} 52. Rb5 {[%emt 0:02:45]} Ke6 {[%emt 0:00:32]} 53. Kc2 {[%emt 0:00:32]} Be1 {[%emt 0:06:15]} 54. Rb7 {[%emt 0:01:56]} Bd2 {[%emt 0:00:10]} 55. Re7+ {[%emt 0:00:24]} Kf5 {[%emt 0:00:19]} 56. Rxf7 {[%emt 0:00:27]} Bxg5 {[%emt 0:00:44]} 57. Rxh7 {[%emt 0:00:20]} Bxf6 {[%emt 0:00:14]} 58. Rb7 {[%emt 0:00:10]} 1/2-1/2

[Event "SWE-ch Masters 2019"]
[Site "Eskilstuna"]
[Date "2019.07.14"]
[Round "9.6"]
[White "Wahlund, Max"]
[Black "Gromark, Per-Olof"]
[Result "0-1"]
[ECO "E04"]
[WhiteElo "2100"]
[BlackElo "1909"]
[Annotator "ChessBase"]
[PlyCount "98"]
[EventDate "2019.07.06"]
[EventType "swiss"]
[EventCountry "SWE"]
[SourceTitle "playchess.com"]
[Source "ChessBase"]
[SourceQuality "1"]
[TimeControl "40/5400+30:1800+30"]

1. d4 {[%emt 0:01:04]} d5 {[%emt 0:00:00]} 2. c4 {[%emt 0:00:40]} e6 {[%emt 0:00:00]} 3. Nf3 {[%emt 0:00:05]} Nf6 {[%emt 0:00:00]} 4. g3 {[%emt 0:00:03]} dxc4 {[%emt 0:00:00]} 5. Bg2 {[%emt 0:03:42]} a6 {[%emt 0:00:04]} 6. O-O {[%emt 0:03:45]} Nc6 {[%emt 0:00:53]} 7. e3 {[%emt 0:11:11]} Rb8 {[%emt 0:00:41]} 8. Nfd2 {[%emt 0:10:26]} Be7 {[%emt 0:02:58]} 9. Nxc4 {[%emt 0:00:07]} Bd7 {[%emt 0:02:09]} 10. Nc3 {[%emt 0:01:39]} O-O {[%emt 0:02:22]} 11. e4 {[%emt 0:00:38]} b5 {[%emt 0:03:28]} 12. Ne3 {[%emt 0:02:36]} b4 {[%emt 0:03:15]} 13. Ne2 {[%emt 0:00:37]} Na5 {[%emt 0:05:55]} 14. b3 {[%emt 0:07:52]} c5 {[%emt 0:01:22]} 15. Bb2 {[%emt 0:00:48]} Bb5 {[%emt 0:04:28]} 16. Re1 {[%emt 0:00:03]} Nc6 {[%emt 0:03:45]} 17. d5 {[%emt 0:03:56]} Na7 {[%emt 0:05:09]} 18. Nc4 {[%emt 0:08:43]} exd5 {[%emt 0:02:59]} 19. exd5 {[%emt 0:00:09]} Nc8 {[%emt 0:01:12]} 20. Qd3 {[%emt 0:13:49]} Nd6 {[%emt 0:02:38]} 21. Rac1 {[%emt 0:01:37]} Nd7 {[%emt 0:02:30]} 22. Qc2 {[%emt 0:04:40]} Bxc4 {[%emt 0:02:08]} 23. bxc4 {[%emt 0:00:01]} Bf6 {[%emt 0:00:25]} 24. Nf4 {[%emt 0:01:27]} Nb6 {[%emt 0:01:55]} 25. Nd3 {[%emt 0:05:21]} Rc8 {[%emt 0:02:38]} 26. Bh3 {[%emt 0:03:22]} Rc7 {[%emt 0:02:05]} 27. Ne5 {[%emt 0:11:01]} Bxe5 {[%emt 0:05:55]} 28. Bxe5 {[%emt 0:00:00]} Nbxc4 {[%emt 0:00:23]} 29. Ba1 {[%emt 0:00:00]} Re8 {[%emt 0:04:56]} 30. Qd3 {[%emt 0:00:00]} Rxe1+ {[%emt 0:00:33]} 31. Rxe1 {[%emt 0:00:00]} Re7 {[%emt 0:00:15]} 32. Rc1 {[%emt 0:00:00]} Qe8 {[%emt 0:02:57]} 33. Kf1 {[%emt 0:00:14]} Qb5 {[%emt 0:01:17]} 34. Kg1 {[%emt 0:00:38]} Nb6 {[%emt 0:05:37]} 35. Qxb5 {[%emt 0:04:51]} axb5 {[%emt 0:03:06]} 36. f4 {[%emt 0:00:01]} c4 {[%emt 0:00:54]} 37. Be5 {[%emt 0:00:28]} Nbc8 {[%emt 0:02:29]} 38. Kf2 {[%emt 0:01:43]} Ra7 {[%emt 0:02:00]} 39. Rc2 {[%emt 0:00:33]} Kf8 {[%emt 0:00:46]} 40. Ke3 {[%emt 0:01:23]} f6 {[%emt 0:03:41]} 41. Bd4 {[%emt 0:01:25]} Ra3+ {[%emt 0:08:42]} 42. Ke2 {[%emt 0:01:09]} b3 {[%emt 0:04:39]} 43. axb3 {[%emt 0:05:57]} Rxb3 {[%emt 0:01:07]} 44. Ra2 {[%emt 0:02:38]} f5 {[%emt 0:01:53]} 45. Bc5 {[%emt 0:01:12]} g6 {[%emt 0:02:22]} 46. Ra6 {[%emt 0:00:01]} Ke7 {[%emt 0:00:42]} 47. Bg2 {[%emt 0:03:30]} Rb2+ {[%emt 0:01:59]} 48. Kf1 {[%emt 0:00:41]} c3 {[%emt 0:03:01]} 49. Bd4 {[%emt 0:01:09]} Rb1+ {[%emt 0:01:11]} 0-1

[Event "SWE-ch Masters 2019"]
[Site "Eskilstuna"]
[Date "2019.07.14"]
[Round "9.7"]
[White "Adellian, Yashar"]
[Black "Hellstrom, Magnus"]
[Result "1/2-1/2"]
[ECO "B22"]
[WhiteElo "1995"]
[BlackElo "2061"]
[Annotator "NA"]
[PlyCount "21"]
[EventDate "2019.07.06"]
[EventType "swiss"]
[EventCountry "SWE"]
[SourceTitle "playchess.com"]
[Source "ChessBase"]
[SourceQuality "1"]
[TimeControl "40/5400+30:1800+30"]

1. e4 {[%emt 0:00:00]} c5 {[%emt 0:00:00]} 2. c3 {[%emt 0:00:00]} Nf6 {[%emt 0:00:05]} 3. e5 {[%emt 0:00:00]} Nd5 {[%emt 0:00:13]} 4. d4 {[%emt 0:00:00]} cxd4 {[%emt 0:00:08]} 5. cxd4 {[%emt 0:00:06]} d6 {[%emt 0:00:26]} 6. Nf3 {[%emt 0:00:09]} Nc6 {[%emt 0:01:01]} 7. Bc4 {[%emt 0:00:12]} dxe5 {[%emt 0:08:54]} 8. dxe5 {[%emt 0:00:55]} Nb6 {[%emt 0:00:43]} 9. Qxd8+ {[%emt 0:01:03]} Nxd8 {[%emt 0:01:40]} 10. Bb3 {[%emt 0:02:59]} g6 {[%emt 0:03:16]} 11. O-O {[%emt 0:06:49]} 1/2-1/2

[Event "SWE-ch Masters 2019"]
[Site "Eskilstuna"]
[Date "2019.07.14"]
[Round "9.8"]
[White "Cramling Bellon, Anna"]
[Black "Jogstad, Daniel"]
[Result "1/2-1/2"]
[ECO "E90"]
[WhiteElo "2030"]
[BlackElo "2154"]
[Annotator "ChessBase"]
[PlyCount "97"]
[EventDate "2019.07.06"]
[EventType "swiss"]
[EventCountry "SWE"]
[SourceTitle "playchess.com"]
[Source "ChessBase"]
[SourceQuality "1"]
[TimeControl "40/5400+30:1800+30"]

1. d4 {[%emt 0:00:00]} Nf6 {[%emt 0:00:41]} 2. c4 {[%emt 0:00:00]} g6 {[%emt 0:00:15]} 3. Nc3 {[%emt 0:00:00]} Bg7 {[%emt 0:00:10]} 4. e4 {[%emt 0:00:00]} d6 {[%emt 0:00:06]} 5. h3 {[%emt 0:00:00]} O-O {[%emt 0:00:10]} 6. Nf3 {[%emt 0:01:34]} Na6 {[%emt 0:00:10]} 7. Bg5 {[%emt 0:09:29]} e5 {[%emt 0:01:13]} 8. d5 {[%emt 0:03:13]} h6 {[%emt 0:01:01]} 9. Be3 {[%emt 0:00:07]} Nc5 {[%emt 0:01:02]} 10. Qc2 {[%emt 0:03:36]} c6 {[%emt 0:03:27]} 11. b4 {[%emt 0:28:14]} Ncxe4 {[%emt 0:00:25]} 12. Nxe4 {[%emt 0:01:02]} Nxe4 {[%emt 0:00:05]} 13. Qxe4 {[%emt 0:05:13]} f5 {[%emt 0:00:07]} 14. Qh4 {[%emt 0:02:18]} f4 {[%emt 0:00:58]} 15. Qxd8 {[%emt 0:00:16]} Rxd8 {[%emt 0:00:07]} 16. Rc1 {[%emt 0:06:51]} fxe3 {[%emt 0:00:49]} 17. fxe3 {[%emt 0:00:01]} Bf5 {[%emt 0:05:27]} 18. Be2 {[%emt 0:05:00]} cxd5 {[%emt 0:01:44]} 19. cxd5 {[%emt 0:00:08]} Rac8 {[%emt 0:00:06]} 20. O-O {[%emt 0:00:42]} Be4 {[%emt 0:18:26]} 21. Bc4 {[%emt 0:01:39]} Rc7 {[%emt 0:00:09]} 22. Nd2 {[%emt 0:01:46]} Bf5 {[%emt 0:03:50]} 23. g4 {[%emt 0:12:30]} Bc8 {[%emt 0:16:29]} 24. Bd3 {[%emt 0:00:22]} Rxc1 {[%emt 0:00:44]} 25. Rxc1 {[%emt 0:00:02]} h5 {[%emt 0:01:12]} 26. g5 {[%emt 0:07:18]} Bxh3 {[%emt 0:00:36]} 27. Bxg6 {[%emt 0:00:13]} Rc8 {[%emt 0:03:45]} 28. Rxc8+ {[%emt 0:01:43]} Bxc8 {[%emt 0:00:05]} 29. Bxh5 {[%emt 0:02:52]} Bf8 {[%emt 0:06:43]} 30. e4 {[%emt 0:01:18]} Bd7 {[%emt 0:02:53]} 31. Kf2 {[%emt 0:01:10]} Be7 {[%emt 0:00:14]} 32. Nf3 {[%emt 0:01:12]} Ba4 {[%emt 0:03:56]} 33. Kg3 {[%emt 0:05:37]} Bd8 {[%emt 0:08:26]} 34. Kh4 {[%emt 0:00:20]} Bc2 {[%emt 0:01:27]} 35. Nd2 {[%emt 0:00:24]} a5 {[%emt 0:01:26]} 36. a3 {[%emt 0:00:56]} Bb6 {[%emt 0:00:03]} 37. Bf3 {[%emt 0:00:51]} axb4 {[%emt 0:01:51]} 38. axb4 {[%emt 0:00:02]} Bd3 {[%emt 0:00:37]} 39. Kg4 {[%emt 0:00:50]} Bd4 {[%emt 0:16:24]} 40. Nb3 {[%emt 0:00:26]} Bc3 {[%emt 0:00:54]} 41. Na5 {[%emt 0:10:26]} Ba6 {[%emt 0:00:17]} 42. b5 {[%emt 0:05:00]} Bxa5 {[%emt 0:00:06]} 43. bxa6 {[%emt 0:00:08]} bxa6 {[%emt 0:00:02]} 44. Kf5 {[%emt 0:07:29]} Kg7 {[%emt 0:00:13]} 45. Be2 {[%emt 0:00:48]} Bb4 {[%emt 0:00:05]} 46. Bxa6 {[%emt 0:00:05]} Bc5 {[%emt 0:00:07]} 47. Be2 {[%emt 0:00:56]} Bb4 {[%emt 0:00:06]} 48. Bh5 {[%emt 0:00:37]} Bc5 {[%emt 0:00:14]} 49. Ke6 {[%emt 0:00:26]} 1/2-1/2

[Event "SWE-ch Masters 2019"]
[Site "Eskilstuna"]
[Date "2019.07.14"]
[Round "9.9"]
[White "Sivhed, Johan"]
[Black "Emmoth, Alfons"]
[Result "1/2-1/2"]
[ECO "C12"]
[WhiteElo "2023"]
[BlackElo "2075"]
[Annotator "NA"]
[PlyCount "54"]
[EventDate "2019.07.06"]
[EventType "swiss"]
[EventCountry "SWE"]
[SourceTitle "playchess.com"]
[Source "ChessBase"]
[SourceQuality "1"]
[TimeControl "40/5400+30:1800+30"]

1. e4 {[%emt 0:00:00]} e6 {[%emt 0:00:00]} 2. d4 {[%emt 0:00:00]} d5 {[%emt 0:00:00]} 3. Nc3 {[%emt 0:00:00]} Nf6 {[%emt 0:00:00]} 4. Bg5 {[%emt 0:00:00]} Bb4 {[%emt 0:00:00]} 5. e5 {[%emt 0:00:02]} h6 {[%emt 0:00:03]} 6. Be3 {[%emt 0:01:21]} Ne4 {[%emt 0:00:26]} 7. Qg4 {[%emt 0:00:23]} g6 {[%emt 0:00:59]} 8. a3 {[%emt 0:00:43]} Bxc3+ {[%emt 0:04:12]} 9. bxc3 {[%emt 0:00:02]} c5 {[%emt 0:00:55]} 10. Bd3 {[%emt 0:03:02]} Nxc3 {[%emt 0:13:50]} 11. dxc5 {[%emt 0:00:45]} Qa5 {[%emt 0:00:42]} 12. Qb4 {[%emt 0:01:48]} Qxb4 {[%emt 0:01:16]} 13. axb4 {[%emt 0:00:03]} Bd7 {[%emt 0:02:43]} 14. Bd4 {[%emt 0:16:11]} Nb5 {[%emt 0:02:11]} 15. Bb2 {[%emt 0:04:09]} Na6 {[%emt 0:03:03]} 16. Ra5 {[%emt 0:04:57]} Nac7 {[%emt 0:01:00]} 17. Nf3 {[%emt 0:04:29]} a6 {[%emt 0:01:11]} 18. Kd2 {[%emt 0:03:09]} Na7 {[%emt 0:01:31]} 19. Nd4 {[%emt 0:02:54]} Nc6 {[%emt 0:08:41]} 20. Nxc6 {[%emt 0:00:12]} Bxc6 {[%emt 0:00:02]} 21. Bd4 {[%emt 0:01:02]} Kd7 {[%emt 0:01:35]} 22. h4 {[%emt 0:08:30]} Bb5 {[%emt 0:04:29]} 23. f3 {[%emt 0:12:38]} Rag8 {[%emt 0:03:24]} 24. g4 {[%emt 0:05:09]} Bxd3 {[%emt 0:13:44]} 25. Kxd3 {[%emt 0:03:34]} Nb5 {[%emt 0:01:34]} 26. c3 {[%emt 0:04:27]} Na7 {[%emt 0:00:45]} 27. Ra2 {[%emt 0:04:20]} Kc7 {[%emt 0:02:03]} 1/2-1/2

[Event "SWE-ch Masters 2019"]
[Site "Eskilstuna"]
[Date "2019.07.14"]
[Round "9.10"]
[White "Olsson, William"]
[Black "Carlsson, Andreas"]
[Result "0-1"]
[ECO "A13"]
[WhiteElo "2113"]
[BlackElo "2019"]
[Annotator "ChessBase"]
[PlyCount "96"]
[EventDate "2019.07.06"]
[EventType "swiss"]
[EventCountry "SWE"]
[SourceTitle "playchess.com"]
[Source "ChessBase"]
[SourceQuality "1"]
[TimeControl "40/5400+30:1800+30"]

1. c4 {[%emt 0:00:00]} e6 {[%emt 0:00:04]} 2. Nc3 {[%emt 0:00:00]} f5 {[%emt 0:00:10]} 3. d3 {[%emt 0:00:00]} Nf6 {[%emt 0:00:06]} 4. g3 {[%emt 0:00:06]} c6 {[%emt 0:00:16]} 5. Bg2 {[%emt 0:01:10]} d5 {[%emt 0:00:04]} 6. Qc2 {[%emt 0:01:28]} d4 {[%emt 0:03:45]} 7. Nb1 {[%emt 0:00:09]} c5 {[%emt 0:02:03]} 8. Bf4 {[%emt 0:00:58]} Bd6 {[%emt 0:00:29]} 9. Bxd6 {[%emt 0:01:41]} Qxd6 {[%emt 0:00:07]} 10. Nd2 {[%emt 0:00:07]} Nc6 {[%emt 0:00:34]} 11. a3 {[%emt 0:00:10]} O-O {[%emt 0:00:50]} 12. Nh3 {[%emt 0:00:29]} b6 {[%emt 0:01:08]} 13. Qa4 {[%emt 0:01:02]} Bd7 {[%emt 0:00:29]} 14. Rb1 {[%emt 0:01:16]} a5 {[%emt 0:00:42]} 15. O-O {[%emt 0:01:22]} h6 {[%emt 0:01:24]} 16. Qc2 {[%emt 0:02:48]} g5 {[%emt 0:00:17]} 17. f4 {[%emt 0:01:25]} g4 {[%emt 0:03:53]} 18. Nf2 {[%emt 0:00:06]} Kg7 {[%emt 0:01:02]} 19. Rbe1 {[%emt 0:00:40]} h5 {[%emt 0:00:23]} 20. e4 {[%emt 0:00:15]} dxe3 {[%emt 0:00:28]} 21. Rxe3 {[%emt 0:00:06]} Nd4 {[%emt 0:01:05]} 22. Qc3 {[%emt 0:00:26]} Bc6 {[%emt 0:00:46]} 23. Bxc6 {[%emt 0:01:53]} Qxc6 {[%emt 0:00:08]} 24. b4 {[%emt 0:00:06]} axb4 {[%emt 0:00:30]} 25. axb4 {[%emt 0:00:04]} Ra2 {[%emt 0:01:11]} 26. bxc5 {[%emt 0:00:28]} bxc5 {[%emt 0:00:18]} 27. Qc1 {[%emt 0:07:02]} Rb8 {[%emt 0:02:18]} 28. Nb1 {[%emt 0:02:42]} Re2 {[%emt 0:02:14]} 29. Nc3 {[%emt 0:03:59]} Rc2 {[%emt 0:05:06]} 30. Qe1 {[%emt 0:00:08]} Rbb2 {[%emt 0:00:41]} 31. Nb5 {[%emt 0:02:54]} Nf3+ {[%emt 0:01:15]} 32. Rxf3 {[%emt 0:00:12]} Qxf3 {[%emt 0:00:14]} 33. Nc3 {[%emt 0:01:11]} Qxd3 {[%emt 0:01:10]} 34. Ncd1 {[%emt 0:00:22]} Ra2 {[%emt 0:03:54]} 35. Qxe6 {[%emt 0:00:23]} Re2 {[%emt 0:01:27]} 36. Qc8 {[%emt 0:01:18]} h4 {[%emt 0:01:32]} 37. Qb7+ {[%emt 0:01:07]} Qd7 {[%emt 0:01:14]} 38. Qxd7+ {[%emt 0:00:26]} Nxd7 {[%emt 0:00:07]} 39. Nc3 {[%emt 0:00:05]} Nb6 {[%emt 0:02:01]} 40. Nxa2 {[%emt 0:00:13]} Rxa2 {[%emt 0:00:07]} 41. gxh4 {[%emt 0:33:13]} Nxc4 {[%emt 0:31:54]} 42. Nd3 {[%emt 0:00:08]} Nd2 {[%emt 0:01:09]} 43. Rf2 {[%emt 0:02:11]} c4 {[%emt 0:01:41]} 44. Nc1 {[%emt 0:01:17]} Rc2 {[%emt 0:02:26]} 45. Kg2 {[%emt 0:04:01]} Kf6 {[%emt 0:04:26]} 46. Re2 {[%emt 0:02:05]} Rb2 {[%emt 0:05:08]} 47. h5 {[%emt 0:05:10]} c3 {[%emt 0:00:14]} 48. h3 {[%emt 0:02:22]} Nb3 {[%emt 0:05:52]} 0-1